bitfinex-derivatives/quotes_BTCF0:USTF0_20250108
["timestamp","ask_amount","ask_price","bid_price","bid_amount"]
[1736296694231,0.3608,97248.0,97240.0,0.15529369]
[1736296694537,0.11291971,97247.0,97240.0,0.15529369]
[1736296694945,0.43369943,97247.0,97240.0,0.15529369]
[1736296696345,0.3231,97246.0,97240.0,0.15529369]
[1736296696746,0.11828113,97245.0,97240.0,0.15529369]
[1736296697148,0.4074,97244.0,97240.0,0.15529369]
[1736296697350,0.4074,97244.0,97240.0,0.05356054]
[1736296697546,0.10817055,97243.0,97240.0,0.05356054]
[1736296698046,0.42895027,97243.0,97240.0,0.05356054]
[1736296700447,0.42895027,97243.0,97240.0,0.00154198]
[1736296700640,0.4315,97242.0,97240.0,0.00154198]
[1736296701049,0.10926027,97241.0,97240.0,0.00154198]
[1736296701443,0.43003999,97241.0,97240.0,0.00154198]
[1736296702656,0.43003999,97241.0,97234.0,0.41107659]
[1736296710258,0.4276,97259.0,97234.0,0.41107659]
[1736296710448,0.4033,97258.0,97249.0,0.10173315]
[1736296710759,0.52260195,97258.0,97254.0,0.3608]
[1736296711054,0.11930195,97258.0,97254.0,0.3608]
[1736296711452,0.11731565,97260.0,97254.0,0.3608]
[1736296711653,0.3608,97261.0,97254.0,0.27343903]
[1736296712055,0.10831998,97260.0,97254.0,0.27343903]
[1736296712859,0.10831998,97260.0,97254.0,0.18972019]
[1736296713656,0.10831998,97260.0,97254.0,0.14391514]
[1736296713960,0.02261754,97260.0,97254.0,0.05079351]
[1736296714164,0.02261754,97260.0,97252.0,0.3608]
[1736296716366,0.4124,97280.0,97252.0,0.3608]
[1736296716550,0.67988784,97272.0,97262.0,0.10173315]
[1736296716749,0.10832914,97271.0,97262.0,0.10173315]
[1736296717150,0.42741698,97271.0,97252.0,0.3608]
[1736296717356,0.3608,97262.0,97260.0,0.10173315]
[1736296717659,0.11368806,97261.0,97252.0,0.10173315]
[1736296718057,0.4327759,97261.0,97252.0,0.10173315]
[1736296718758,0.4327759,97261.0,97252.0,0.03089539]
[1736296721265,0.4327759,97261.0,97251.0,0.10173315]
[1736296721765,0.4327759,97261.0,97251.0,0.00513826]
[1736296721963,0.4327759,97261.0,97253.0,0.3608]
[1736296724968,0.4327759,97261.0,97251.0,0.00513826]
[1736296725559,0.04356596,97261.0,97253.0,0.3608]
[1736296726554,0.04356596,97261.0,97253.0,0.25133746]
[1736296726759,0.04356596,97261.0,97253.0,0.15475372]
[1736296726959,0.04356596,97261.0,97251.0,0.12081082]
[1736296727359,0.04356596,97261.0,97251.0,0.13883766]
[1736296727656,0.04356596,97261.0,97251.0,0.10173315]
[1736296727858,0.04356596,97261.0,97251.0,0.2034663]
[1736296728963,0.02399641,97261.0,97251.0,0.2034663]
[1736296729863,0.02399641,97261.0,97251.0,0.5721663]
[1736296730268,0.02399641,97261.0,97250.0,0.36769407]
[1736296730465,0.02399641,97261.0,97251.0,0.10173315]
[1736296730865,0.02399641,97261.0,97250.0,0.35996731]
[1736296731672,0.02399641,97261.0,97250.0,0.26338468]
[1736296732371,0.02399641,97261.0,97251.0,0.10173315]
[1736296733375,0.02399641,97261.0,97251.0,0.0180268]
[1736296737979,0.02399641,97261.0,97252.0,0.3608]
[1736296740277,0.3608,97263.0,97252.0,0.3608]
[1736296740278,0.32064641,97263.0,97252.0,0.3608]
[1736296740675,0.11351591,97262.0,97252.0,0.3608]
[1736296741684,0.43260375,97262.0,97251.0,0.0180268]
[1736296741887,0.10173315,97261.0,97250.0,0.87618276]
[1736296742080,0.51283315,97261.0,97252.0,0.3608]
[1736296742285,0.11817974,97260.0,97252.0,0.35436012]
[1736296742678,0.43726758,97260.0,97252.0,0.35436012]
[1736296742879,0.43726758,97260.0,97252.0,0.28351648]
[1736296743281,0.4111,97259.0,97252.0,0.17403016]
[1736296743686,0.10846507,97258.0,97250.0,0.46152]
[1736296744184,0.42755291,97258.0,97250.0,0.46152]
[1736296744582,0.42755291,97258.0,97250.0,0.51254086]
[1736296745592,0.3608,97253.0,97250.0,0.51254086]
[1736296745989,0.11810615,97252.0,97250.0,0.51254086]
[1736296746387,0.43719399,97252.0,97250.0,0.51254086]
[1736296746587,0.00408301,97252.0,97250.0,0.51254086]
[1736296746791,0.11810615,97258.0,97251.0,0.3934]
[1736296747184,0.39146569,97259.0,97251.0,0.29680142]
[1736296747382,0.11190461,97258.0,97251.0,0.18732325]
[1736296747788,0.11190461,97258.0,97251.0,0.07784511]
[1736296748188,0.11190461,97258.0,97250.0,0.51254086]
[1736296748994,0.07936461,97258.0,97250.0,0.51254086]
[1736296749199,0.4228,97271.0,97257.0,0.27321929]
[1736296749399,0.11563214,97262.0,97261.0,0.10173315]
[1736296749588,0.11563214,97262.0,97257.0,0.27321929]
[1736296749892,0.4228,97271.0,97252.0,0.10173315]
[1736296750094,0.10747089,97261.0,97260.0,0.10173315]
[1736296750293,0.10747089,97269.0,97251.0,0.50493315]
[1736296750493,0.74188784,97271.0,97259.0,0.10173315]
[1736296750899,0.10747089,97268.0,97259.0,0.10173315]
[1736296751196,0.74188784,97271.0,97259.0,0.10173315]
[1736296751496,0.11593306,97267.0,97259.0,0.01802444]
[1736296751694,0.11593306,97268.0,97259.0,0.01802444]
[1736296751894,0.31908784,97268.0,97259.0,0.01802444]
[1736296752095,0.43722945,97268.0,97259.0,0.01802444]
[1736296755701,0.43722945,97268.0,97258.0,0.10173315]
[1736296756594,0.43722945,97268.0,97258.0,0.2034663]
[1736296757294,0.43722945,97268.0,97258.0,0.10173315]
[1736296757493,0.43722945,97268.0,97258.0,0.2034663]
[1736296758300,0.43722945,97268.0,97258.0,0.10173315]
[1736296759303,0.3608,97266.0,97258.0,0.10173315]
[1736296759602,0.31908784,97266.0,97258.0,0.10173315]
[1736296759803,0.07830913,97265.0,97256.0,0.10173315]
[1736296760196,0.10825109,97270.0,97260.0,0.3608]
[1736296760400,0.10825109,97264.0,97260.0,0.3608]
[1736296760802,0.10825109,97270.0,97260.0,0.3608]
[1736296760998,0.74188784,97271.0,97260.0,0.3608]
[1736296761205,0.10771648,97270.0,97260.0,0.3608]
[1736296761498,0.39493432,97270.0,97260.0,0.26421842]
[1736296761693,0.07584648,97270.0,97260.0,0.26421842]
[1736296761892,0.10771648,97273.0,97260.0,0.26421842]
[1736296762094,0.67988784,97274.0,97264.0,0.10173315]
[1736296762296,0.3608,97265.0,97255.0,0.10173315]
[1736296762498,0.3608,97265.0,97255.0,0.2034663]
[1736296762700,0.01454596,97264.0,97255.0,0.49010257]
[1736296762898,0.393,97282.0,97256.0,0.3608]
[1736296763096,0.71208784,97282.0,97272.0,0.10173315]
[1736296763295,0.11514826,97273.0,97256.0,0.3608]
[1736296763499,0.17638771,97282.0,97263.0,0.10173315]
[1736296763698,0.17638771,97282.0,97272.0,0.10173315]
[1736296763892,0.11514826,97278.0,97272.0,0.10173315]
[1736296764098,0.11514826,97281.0,97272.0,0.10173315]
[1736296764403,0.07987727,97277.0,97272.0,0.46253315]
[1736296764593,0.11259727,97281.0,97273.0,1.1467]
[1736296764798,0.11259727,97276.0,97273.0,1.1467]
[1736296765106,0.11081884,97278.0,97273.0,1.0758888]
[1736296765296,0.11081884,97285.0,97273.0,1.0758888]
[1736296765494,0.06153758,97293.0,97273.0,1.0758888]
[1736296765701,0.11081884,97292.0,97283.0,0.10173315]
[1736296765898,0.06153758,97293.0,97283.0,0.10173315]
[1736296766099,0.06153758,97293.0,97282.0,0.10173315]
[1736296766305,0.11119753,97292.0,97282.0,0.10173315]
[1736296766497,0.11119753,97292.0,97273.0,0.95351289]
[1736296766694,0.17273511,97292.0,97282.0,0.10173315]
[1736296767100,0.06153758,97292.0,97282.0,0.10173315]
[1736296767301,0.10740087,97291.0,97282.0,0.08890162]
[1736296767502,0.10740087,97291.0,97273.0,1.0051567]
[1736296767794,0.16893845,97291.0,97281.0,0.10173315]
[1736296768303,0.06153758,97291.0,97281.0,0.10173315]
[1736296768607,0.02473376,97291.0,97281.0,0.10173315]
[1736296768806,0.11911653,97290.0,97281.0,0.10173315]
[1736296769203,0.09341652,97290.0,97281.0,0.10173315]
[1736296769402,0.11417046,97293.0,97280.0,0.10173315]
[1736296769609,0.08221046,97293.0,97280.0,0.10173315]
[1736296769810,0.3608,97294.0,97281.0,0.3608]
[1736296770014,0.1141327,97293.0,97281.0,0.3608]
[1736296770701,0.4749327,97297.0,97281.0,0.25137223]
[1736296771008,0.1098327,97296.0,97287.0,0.2034663]
[1736296771212,0.3608,97297.0,97287.0,0.6649063]
[1736296771406,0.11350325,97296.0,97287.0,0.6649063]
[1736296771908,0.3608,97289.0,97274.0,0.28663627]
[1736296772204,0.10916825,97288.0,97279.0,0.10173315]
[1736296772605,0.10916825,97288.0,97282.0,0.3608]
[1736296773009,0.10916825,97296.0,97282.0,0.28999323]
[1736296773206,0.10916825,97296.0,97282.0,0.50387148]
[1736296773401,0.02473376,97296.0,97286.0,0.10173315]
[1736296773601,0.13718115,97296.0,97286.0,0.10173315]
[1736296774310,0.07962739,97296.0,97290.0,0.3608]
[1736296774512,0.07962739,97296.0,97286.0,0.2034663]
[1736296774513,0.07962739,97296.0,97291.0,0.309]
[1736296774811,0.07962739,97296.0,97291.0,0.7404]
[1736296775307,0.07962739,97296.0,97291.0,0.65672471]
[1736296775707,0.06906074,97296.0,97291.0,0.22532471]
[1736296777611,0.06906074,97296.0,97286.0,0.15310208]
[1736296778414,0.06906074,97296.0,97286.0,0.25483523]
[1736296779007,0.0937945,97296.0,97286.0,0.15310208]
[1736296779210,0.3608,97295.0,97286.0,0.15310208]
[1736296779509,1.1787,97295.0,97286.0,0.15310208]
[1736296779709,0.11174623,97294.0,97286.0,0.15310208]
[1736296780111,0.13647999,97294.0,97286.0,0.15310208]
[1736296780307,0.13647999,97294.0,97286.0,0.05136893]
[1736296780308,0.3608,97287.0,97286.0,0.05136893]
[1736296780617,0.47642096,97287.0,97284.0,0.19007967]
[1736296780812,0.3113,97286.0,97284.0,0.19007967]
[1736296781015,0.3113,97286.0,97284.0,0.11926835]
[1736296781209,0.11915788,97285.0,97284.0,0.11926835]
[1736296781415,0.11915788,97285.0,97284.0,0.0605488]
[1736296781717,0.14389164,97285.0,97284.0,0.0605488]
[1736296782313,0.14389164,97285.0,97284.0,0.11328136]
[1736296783810,0.11915788,97285.0,97284.0,0.04140443]
[1736296784006,0.11915788,97285.0,97280.0,0.10173315]
[1736296784507,0.11915788,97285.0,97280.0,0.15447985]
[1736296784708,0.11724794,97286.0,97280.0,0.15447985]
[1736296784911,0.11724794,97294.0,97280.0,0.15447985]
[1736296785310,0.02473376,97294.0,97280.0,0.15447985]
[1736296785514,0.13877844,97294.0,97280.0,0.15447985]
[1736296787314,0.13877844,97294.0,97280.0,0.07080088]
[1736296787515,0.13877844,97294.0,97284.0,0.10173315]
[1736296788821,0.13877844,97294.0,97284.0,0.00517651]
[1736296789023,0.13877844,97294.0,97284.0,0.10173315]
[1736296793817,0.13877844,97294.0,97284.0,0.08953341]
[1736296799524,0.13877844,97294.0,97284.0,0.00585327]
[1736296799725,0.10325844,97294.0,97284.0,0.00585327]
[1736296800333,0.50865844,97294.0,97284.0,0.00585327]
[1736296800518,0.4009,97293.0,97284.0,0.00585327]
[1736296800926,0.11831737,97292.0,97284.0,0.00585327]
[1736296801334,0.3608,97287.0,97280.0,0.10173315]
[1736296801729,0.10897265,97286.0,97280.0,0.10173315]
[1736296802231,0.3608,97286.0,97275.0,0.05137988]
[1736296802437,0.3608,97286.0,97274.0,0.46144]
[1736296802626,0.11921647,97285.0,97274.0,0.5125616]
[1736296803932,0.3608,97275.0,97274.0,0.0511216]
[1736296804133,0.3608,97275.0,97271.0,0.18272196]
[1736296804441,0.3608,97273.0,97271.0,0.18272196]
[1736296804939,0.11062005,97272.0,97271.0,0.07326531]
[1736296805441,0.11062005,97272.0,97271.0,0.05199697]
[1736296805630,0.11062005,97272.0,97269.0,0.00527176]
[1736296806340,0.3608,97286.0,97271.0,0.3608]
[1736296806841,0.1190769,97272.0,97271.0,0.3608]
[1736296807041,0.1190769,97285.0,97271.0,0.3608]
[1736296807231,0.11040369,97272.0,97271.0,0.3608]
[1736296807633,0.11040369,97285.0,97271.0,0.3608]
[1736296807831,0.3608,97286.0,97271.0,0.3608]
[1736296808126,0.11040369,97272.0,97271.0,0.3608]
[1736296808342,0.11040369,97285.0,97271.0,0.3608]
[1736296808542,0.3608,97286.0,97271.0,0.3608]
[1736296808743,0.11168617,97285.0,97271.0,0.3608]
[1736296808944,0.11168617,97285.0,97271.0,0.26604497]
[1736296809352,0.8232,97284.0,97271.0,0.26604497]
[1736296809548,0.8232,97284.0,97271.0,0.1952198]
[1736296809549,1.1476,97284.0,97271.0,0.1952198]
[1736296809748,0.11243364,97283.0,97271.0,0.1952198]
[1736296811349,0.11243364,97283.0,97271.0,0.17059262]
[1736296814754,0.07792121,97283.0,97279.0,0.3608]
[1736296814950,0.1,97300.0,97280.0,0.4111]
[1736296815257,0.10770711,97297.0,97280.0,0.51283315]
[1736296815454,0.1,97300.0,97280.0,0.51283315]
[1736296815757,0.10173315,97290.0,97280.0,0.4111]
[1736296815941,0.3608,97289.0,97272.0,0.73424]
[1736296816148,0.47859708,97289.0,97272.0,0.7328]
[1736296817150,0.47859708,97289.0,97279.0,0.10173315]
[1736296817350,0.47859708,97289.0,97279.0,0.01803654]
[1736296817549,0.11779708,97289.0,97279.0,0.01803654]
[1736296817748,0.11779708,97289.0,97279.0,0.10173315]
[1736296817956,0.3608,97288.0,97279.0,0.10173315]
[1736296818156,0.1172492,97296.0,97279.0,0.10173315]
[1736296818359,0.6978,97297.0,97272.0,0.68001637]
[1736296818360,0.11239925,97287.0,97272.0,0.68001637]
[1736296818549,0.11239925,97295.0,97272.0,0.68001637]
[1736296818854,0.11239925,97296.0,97272.0,0.58344627]
[1736296819056,0.6978,97297.0,97272.0,0.58344627]
[1736296819456,0.11142953,97296.0,97272.0,0.58344627]
[1736296819657,0.3608,97288.0,97272.0,0.58344627]
[1736296820152,0.11142953,97287.0,97272.0,0.58344627]
[1736296820463,0.11142953,97287.0,97272.0,0.3245]
[1736296820751,0.4069,97286.0,97272.0,0.3245]
[1736296821153,0.11829429,97285.0,97272.0,0.3245]
[1736296822047,0.11829429,97285.0,97267.0,0.42680997]
[1736296822048,0.3608,97275.0,97267.0,0.42680997]
[1736296822449,0.11682589,97274.0,97267.0,0.06829703]
[1736296822852,0.4263,97273.0,97267.0,0.05258706]
[1736296823149,0.4263,97273.0,97265.0,0.46144]
[1736296823150,0.11733762,97272.0,97265.0,0.46144]
[1736296823351,0.11733762,97272.0,97266.0,0.05356732]
[1736296823650,0.11733762,97272.0,97266.0,0.00154161]
[1736296824257,0.10927425,97274.0,97266.0,0.00154161]
[1736296824447,0.3608,97275.0,97266.0,0.00154161]
[1736296824647,0.3608,97274.0,97266.0,0.00154161]
[1736296824947,0.47007425,97274.0,97266.0,0.00154161]
[1736296825144,0.3608,97274.0,97266.0,0.40704161]
[1736296825348,0.11636565,97273.0,97266.0,0.40704161]
[1736296825756,0.11636565,97273.0,97266.0,0.45835146]
[1736296825951,0.11636565,97280.0,97269.0,0.3608]
[1736296826158,0.11636565,97274.0,97270.0,0.10173315]
[1736296826358,0.11636565,97274.0,97267.0,0.3246]
[1736296826659,0.3608,97275.0,97267.0,0.3246]
[1736296826954,0.10959228,97273.0,97267.0,0.3246]
[1736296827159,0.10959228,97274.0,97267.0,0.3246]
[1736296827359,0.10173315,97290.0,97267.0,0.3246]
[1736296827548,0.11351758,97274.0,97270.0,0.10173315]
[1736296827755,0.11351758,97274.0,97267.0,0.3246]
[1736296827960,0.11351758,97284.0,97267.0,0.3246]
[1736296828156,0.15408275,98321.0,97267.0,0.3246]
[1736296828359,0.1166926,97273.0,97267.0,0.3246]
[1736296828550,0.1166926,97281.0,97267.0,0.3246]
[1736296828753,0.1166926,97285.0,97267.0,0.3246]
[1736296828953,0.1166926,97280.0,97267.0,0.3246]
[1736296829254,0.3608,97278.0,97267.0,0.3246]
[1736296829455,0.11292869,97284.0,97267.0,0.3246]
[1736296829650,0.11292869,97277.0,97267.0,0.3246]
[1736296829965,0.11292869,97280.0,97267.0,0.3246]
[1736296830163,0.3608,97298.0,97267.0,0.3246]
[1736296830463,0.11817486,97279.0,97270.0,0.10173315]
[1736296830653,0.11817486,97280.0,97268.0,0.3608]
[1736296830960,0.11817486,97283.0,97268.0,0.3608]
[1736296831165,0.11817486,97284.0,97270.0,0.10173315]
[1736296831365,0.3608,97298.0,97270.0,0.10173315]
[1736296831560,0.11207092,97283.0,97268.0,0.3608]
[1736296832060,0.10173315,97290.0,97268.0,0.3608]
[1736296832268,0.11479356,97282.0,97268.0,0.3608]
[1736296832558,0.11479356,97283.0,97277.0,0.3608]
[1736296832758,1.1615,97299.0,97277.0,0.7216]
[1736296832960,0.11479356,97282.0,97280.0,0.10173315]
[1736296833163,0.11479356,97282.0,97278.0,0.4003]
[1736296833359,1.1615,97299.0,97278.0,0.4003]
[1736296833560,0.11062418,97286.0,97278.0,0.4003]
[1736296833758,0.11062418,97281.0,97278.0,0.4003]
[1736296834063,0.11062418,97285.0,97278.0,0.4003]
[1736296834253,0.11150443,97280.0,97278.0,0.4003]
[1736296834754,0.11150443,97284.0,97278.0,0.4003]
[1736296834961,0.11150443,97286.0,97278.0,0.4003]
[1736296834962,0.11150443,97279.0,97278.0,0.4003]
[1736296835366,0.11288826,97285.0,97278.0,0.31660889]
[1736296835567,0.11288826,97285.0,97278.0,0.22004219]
[1736296835768,0.11288826,97279.0,97278.0,0.22004219]
[1736296835953,0.3608,97292.0,97278.0,0.12573798]
[1736296836159,0.11288826,97284.0,97280.0,0.10173315]
[1736296836356,0.11288826,97297.0,97278.0,0.12573798]
[1736296836552,1.1615,97299.0,97278.0,0.17805605]
[1736296836758,0.10964643,97283.0,97278.0,0.08300894]
[1736296836962,0.10964643,97298.0,97278.0,0.08300894]
[1736296837162,1.1615,97299.0,97278.0,0.05231807]
[1736296837163,0.3608,97292.0,97278.0,0.05231807]
[1736296837363,0.11767423,97282.0,97277.0,0.723]
[1736296837563,0.3608,97292.0,97277.0,0.7216]
[1736296837764,0.11767423,97291.0,97277.0,0.7216]
[1736296837963,0.11767423,97281.0,97277.0,0.7216]
[1736296838159,0.3608,97292.0,97277.0,0.7216]
[1736296838465,0.3608,97284.0,97277.0,0.0506083]
[1736296838764,0.11132623,97283.0,97270.0,0.10173315]
[1736296838972,0.11132623,97283.0,97271.0,0.3608]
[1736296839771,0.03696047,97283.0,97280.0,0.28998409]
[1736296839967,0.02814047,97283.0,97280.0,0.28998409]
[1736296840267,0.3608,97294.0,97280.0,0.1805511]
[1736296840469,0.3608,97294.0,97284.0,0.10173315]
[1736296840669,0.11182342,97293.0,97285.0,0.23134004]
[1736296841374,0.11182342,97293.0,97280.0,0.1805511]
[1736296841663,0.09421154,97293.0,97283.0,0.10173315]
[1736296843059,0.1,97300.0,97289.0,0.3608]
[1736296843258,0.09546099,97292.0,97290.0,1.0321663]
[1736296843467,0.0755288,97292.0,97290.0,0.8287]
[1736296843673,0.1,97300.0,97290.0,0.8287]
[1736296843970,0.11496795,97291.0,97290.0,1.0321663]
[1736296844175,0.11496795,97292.0,97290.0,0.8287]
[1736296844372,0.1,97300.0,97290.0,1.1283]
[1736296844670,0.11917313,97291.0,97290.0,1.1283]
[1736296844868,0.11917313,97297.0,97290.0,1.1283]
[1736296845071,0.1,97300.0,97290.0,1.1283]
[1736296845460,0.11060514,97296.0,97290.0,1.1283]
[1736296845666,0.11060514,97297.0,97290.0,1.1283]
[1736296845876,0.1,97300.0,97290.0,1.1283]
[1736296846172,0.11060514,97296.0,97290.0,1.1283]
[1736296846472,0.1,97300.0,97290.0,1.1283]
[1736296846967,0.11148808,97297.0,97290.0,1.1283]
[1736296847167,0.11148808,97299.0,97290.0,1.18003448]
[1736296847368,0.1,97300.0,97290.0,0.3691541]
[1736296847567,0.11568481,97299.0,97290.0,0.3691541]
[1736296848068,0.3608,97292.0,97290.0,0.3691541]
[1736296848471,0.11102648,97291.0,97290.0,0.3691541]
[1736296850975,0.11720334,97299.0,97290.0,0.3691541]
[1736296851869,0.11720334,97299.0,97290.0,0.29834829]
[1736296852867,0.11720334,97299.0,97290.0,0.24352916]
[1736296853371,0.11720334,97299.0,97290.0,0.15984765]
[1736296853767,0.11720334,97299.0,97290.0,0.00605895]
[1736296854074,0.11720334,97299.0,97289.0,0.2034663]
[1736296855469,0.11720334,97299.0,97289.0,0.25422856]
[1736296857176,0.11720334,97299.0,97289.0,0.15249541]
[1736296859973,0.11720334,97299.0,97289.0,0.61502856]
[1736296861178,0.08068334,97299.0,97289.0,0.61502856]
[1736296862082,0.07129763,97299.0,97289.0,0.61502856]
[1736296868987,0.05688626,97300.0,97289.0,0.61502856]
[1736296869189,0.11338035,97298.0,97289.0,0.61502856]
[1736296869488,0.01429062,97300.0,97297.0,0.3608]
[1736296869489,0.04829993,97299.0,97297.0,0.3608]
[1736296869787,0.3194,97312.0,97297.0,0.3608]
[1736296869979,0.3194,97312.0,97302.0,0.10173315]
[1736296870377,0.06992534,97311.0,97302.0,0.10173315]
[1736296872192,0.06992534,97311.0,97300.0,0.10173315]
[1736296874287,0.3608,97303.0,97300.0,0.10173315]
[1736296874586,0.00253489,97302.0,97290.0,0.10173315]
[1736296875286,0.00253489,97302.0,97290.0,0.2034663]
[1736296875486,0.40873489,97302.0,97290.0,0.10173315]
[1736296879791,0.40873489,97302.0,97290.0,0.15387563]
[1736296881391,0.40873489,97302.0,97290.0,0.25560878]
[1736296882198,0.00253489,97302.0,97290.0,0.25560878]
[1736296884095,0.07457304,97310.0,97290.0,0.25560878]
[1736296884289,0.07457304,97310.0,97300.0,0.10173315]
[1736296888800,0.03880347,97310.0,97300.0,0.09155984]
[1736296889100,0.03880347,97310.0,97300.0,0.02076063]
[1736296889996,0.03880347,97310.0,97300.0,0.10173315]
[1736296892692,0.3608,97305.0,97300.0,0.10173315]
[1736296892894,0.3608,97305.0,97295.0,0.46132]
[1736296893296,0.03795816,97304.0,97295.0,0.59467]
[1736296893798,0.03795816,97304.0,97295.0,0.52771119]
[1736296894508,0.03795816,97304.0,97295.0,0.41829169]
[1736296895492,0.03795816,97304.0,97295.0,0.35161669]
[1736296895697,0.03795816,97304.0,97295.0,0.15795354]
[1736296896001,0.03795816,97304.0,97295.0,0.07427981]
[1736296897091,0.03795816,97304.0,97295.0,0.066675]
[1736296897292,0.03795816,97304.0,97294.0,0.066675]
[1736296898096,0.03795816,97304.0,97294.0,0.13335]
[1736296898798,0.03795816,97304.0,97294.0,0.10347981]
[1736296902097,0.03795816,97304.0,97293.0,0.0504496]
[1736296902306,0.03795816,97304.0,97294.0,0.13335]
[1736296903909,0.03795816,97304.0,97294.0,0.1034784]
[1736296905206,0.03795816,97304.0,97291.0,0.3608]
[1736296905509,0.03795816,97304.0,97294.0,0.066675]
[1736296907508,0.03795816,97304.0,97294.0,0.13335]
[1736296907905,0.03795816,97304.0,97300.0,0.3608]
[1736296908210,0.00084502,97311.0,97301.0,0.34433038]
[1736296908410,0.00084502,97311.0,97301.0,0.72400538]
[1736296908609,0.03542315,97312.0,97301.0,0.72400538]
[1736296908812,0.3608,97317.0,97301.0,0.65733038]
[1736296909012,0.3608,97309.0,97301.0,0.65733038]
[1736296909205,0.3608,97309.0,97301.0,0.56078612]
[1736296909402,0.36206737,97308.0,97301.0,0.56078612]
[1736296909904,0.3608,97308.0,97301.0,0.56078612]
[1736296910201,0.00464698,97307.0,97301.0,0.56078612]
[1736296912805,0.00464698,97307.0,97301.0,0.61342929]
[1736296914015,0.00464698,97307.0,97301.0,0.52975889]
[1736296914214,0.00464698,97307.0,97301.0,0.43321612]
[1736296914514,0.00464698,97307.0,97301.0,0.32380098]
[1736296915217,0.00464698,97307.0,97301.0,0.23106437]
[1736296915605,0.3608,97317.0,97301.0,0.23106437]
[1736296915815,0.00464698,97316.0,97301.0,0.23106437]
[1736296916011,0.3608,97309.0,97307.0,0.066675]
[1736296916417,0.02655162,97308.0,97301.0,0.23106437]
[1736296918321,0.02655162,97308.0,97301.0,0.1602686]
[1736296919422,0.02655162,97308.0,97301.0,0.08528322]
[1736296920017,0.02655162,97308.0,97301.0,0.00161304]
[1736296920213,0.02655162,97308.0,97300.0,0.3608]
[1736296920518,0.02655162,97308.0,97300.0,0.41300727]
[1736296920918,0.02655162,97308.0,97300.0,0.05220727]
[1736296921119,0.02655162,97308.0,97298.0,0.13335]
[1736296921714,0.02655162,97308.0,97300.0,0.3608]
[1736296923024,0.02655162,97308.0,97298.0,0.066675]
[1736296923319,0.319,97307.0,97298.0,0.066675]
[1736296923821,0.41389406,97306.0,97298.0,0.066675]
[1736296924018,0.41389406,97306.0,97296.0,0.066675]
[1736296924425,0.427,97305.0,97296.0,0.066675]
[1736296924819,0.02824159,97304.0,97296.0,0.066675]
[1736296926016,0.02824159,97304.0,97294.0,0.11635409]
[1736296927424,0.02824159,97304.0,97294.0,0.13335]
[1736296931723,0.02824159,97304.0,97294.0,0.066675]
[1736296931917,0.02824159,97304.0,97294.0,0.13335]
[1736296932123,0.02824159,97304.0,97294.0,0.11635633]
[1736296932418,0.02824159,97304.0,97294.0,0.13335]
[1736296933522,0.01056159,97305.0,97294.0,0.13335]
[1736296934027,0.02824159,97306.0,97294.0,0.13335]
[1736296934219,0.319,97307.0,97294.0,0.13335]
[1736296934412,0.03795816,97306.0,97294.0,0.13335]
[1736296934618,0.03795816,97306.0,97294.0,0.066675]
[1736296935124,0.03795816,97306.0,97296.0,0.066675]
[1736296935317,0.03795816,97306.0,97291.0,0.28819076]
[1736296935629,0.03795816,97306.0,97296.0,0.066675]
[1736296938122,0.03795816,97306.0,97296.0,0.11635735]
[1736296938536,0.03795816,97306.0,97296.0,0.066675]
[1736296938924,0.03795816,97306.0,97296.0,0.13335]
[1736296940330,0.03795816,97306.0,97294.0,0.46128]
[1736296940530,0.03795816,97306.0,97296.0,0.13335]
[1736296941827,0.03795816,97306.0,97296.0,0.07388701]
[1736296943327,0.03795816,97306.0,97296.0,0.00309151]
[1736296943525,0.03795816,97306.0,97301.0,0.3608]
[1736296944223,0.03795816,97306.0,97301.0,0.27713564]
[1736296947737,0.03795816,97306.0,97296.0,0.06976651]
[1736296948033,0.03795816,97306.0,97296.0,0.066675]
[1736296953525,0.03795816,97306.0,97295.0,0.25251581]
[1736296953830,0.03795816,97306.0,97296.0,0.066675]
[1736296959137,0.3608,97302.0,97296.0,0.066675]
[1736296959435,0.00084502,97301.0,97296.0,0.066675]
[1736296959636,0.00084502,97301.0,97294.0,0.46128]
[1736296959947,0.32481502,97302.0,97294.0,0.46128]
[1736296960133,0.31949401,97302.0,97291.0,0.066675]
[1736296960534,0.00084507,97301.0,97291.0,0.427475]
[1736296960734,0.31759494,97302.0,97291.0,0.427475]
[1736296961133,0.31232785,97302.0,97291.0,0.427475]
[1736296961634,0.27567785,97302.0,97291.0,0.39525196]
[1736296961838,0.3006,97308.0,97301.0,0.3608]
[1736296962344,0.3006,97308.0,97301.0,0.31805251]
[1736296965842,0.3006,97308.0,97301.0,0.23438899]
[1736296966344,0.3006,97308.0,97301.0,0.2845992]
[1736296966539,0.3006,97308.0,97301.0,0.18806739]
[1736296967440,0.8064,97309.0,97298.0,0.1127699]
[1736296967637,0.3608,97318.0,97299.0,0.066675]
[1736296967943,0.3608,97318.0,97308.0,0.066675]
[1736296968342,0.3608,97310.0,97308.0,0.066675]
[1736296968649,0.3608,97318.0,97307.0,0.21382357]
[1736296969046,0.3608,97318.0,97308.0,0.066675]
[1736296969651,0.3608,97318.0,97310.0,0.3608]
[1736296969849,1.1524,97327.0,97310.0,0.3608]
[1736296970047,1.1524,97327.0,97320.0,0.3608]
[1736296971741,1.1524,97327.0,97320.0,0.2771479]
[1736296975542,1.1524,97327.0,97320.0,0.20636543]
[1736296976349,1.1524,97327.0,97317.0,0.13335]
[1736296977251,1.1524,97327.0,97317.0,0.18445866]
[1736296977450,1.1524,97327.0,97317.0,0.14174325]
[1736296977638,1.1524,97327.0,97317.0,0.18445866]
[1736296977842,1.1524,97327.0,97317.0,0.10080649]
[1736296978446,1.1524,97327.0,97317.0,0.15345953]
[1736296979146,1.1524,97327.0,97317.0,0.17397389]
[1736296980647,0.14264018,97326.0,97317.0,0.17397389]
[1736296981241,0.14264018,97326.0,97317.0,0.07745407]
[1736296981449,0.14264018,97326.0,97317.0,0.01077907]
[1736296981638,0.14264018,97326.0,97316.0,0.13335]
[1736296982057,0.10550018,97326.0,97316.0,0.18439174]
[1736296982245,0.10550018,97326.0,97316.0,0.14168105]
[1736296982842,1.1524,97327.0,97316.0,0.14168105]
[1736296983247,1.1524,97327.0,97316.0,0.02392659]
[1736296983551,0.8077047,97327.0,97317.0,0.066675]
[1736296983944,0.3608,97337.0,97317.0,0.13335]
[1736296984149,0.3608,97337.0,97323.0,0.066675]
[1736296984352,0.3608,97337.0,97323.0,0.427475]
[1736296985245,0.3608,97337.0,97323.0,0.066675]
[1736296985445,0.3608,97337.0,97318.0,0.3964]
[1736296985853,0.3608,97337.0,97323.0,0.066675]
[1736296986858,0.4286,97336.0,97323.0,0.066675]